{"text_format":"1","workbook":"xlsx","n_sheets":2,"sheets":["Sheet1","Sheet2"],"not_rendered":{"charts":0,"images":0,"macros":1,"external_links":0,"defined_names":0,"comments":0,"pivot_tables":0},"unopened":[],"bounds":{"document_bytes":16777216,"sheet_cells":100000,"rows_first":2000,"rows_last":500,"rows_between":2000,"halvings":0,"cell_chars":16384,"cell_head_chars":4096},"cells_cut":0,"cells_raw":0,"read":"whole","date_system":"1900"}

{"sheet":"Sheet1","index":0,"n_rows":20,"n_cols":8,"rows_kept":20,"cut":false,"hidden":false,"merged":[]}
[]
[null,"بيـــــــــــــــــــــــــــــــــــــــــــان بالتسويات المقدمه من أ / سامي العناني",null,null,null,null,null," =Salim_count(F4)"]
[null,"م","الفروع","المبلغ ","عدد\nالتسويات","مبالغ التسويات"]
[null,1,"عباس ",{"$f":"Salim_Sum(F4)","v":21.5},{"$f":"Salim_count(F4)","v":3},"10,10,AmB,1.5"]
[null,2,"ثروت",{"$f":"Salim_Sum(F5)","v":59.5},{"$f":"Salim_count(F5)","v":4},"10+12+17+20.5"]
[null,3,"أكتوبر",31.5,4,"10+10+10+1.5"]
[null,4,"الرحاب ",11.5,2,"dd4sv1.5+10",null," =Salim_Sum(F4)"]
[null,5,"المقطم","",""]
[null,6,"الدقي","",""]
[null,7,"المعادي","",""]
[null,8,"مصر الجديده","",""]
[null,9,"cpc","",""]
[null,10,"الصحراوي","",""]
[null,11,"الزهور ","",""]
[null,12,"الورشه","",""]
[null,13,"الإداره","",""]
[null,14,null,"",""]
[null,15,null,"",""]
[]
[null,null,"الإجمالي",{"$f":"SUM(D4:D18)","v":124}]

{"sheet":"Sheet2","index":1,"n_rows":1,"n_cols":5,"rows_kept":1,"cut":false,"hidden":false,"merged":[]}
["12+2.5",null,"2 Numbers",12,2.5]